bitfinex/quotes_SOLUSD_20240827
["timestamp","ask_amount","ask_price","bid_price","bid_amount"]
[1724730374021,10.45692155,158.73,158.68,6.3019]
[1724730374824,9.85286292,158.71,158.66,15.756]
[1724730375007,10.45692155,158.71,158.67,6.3023]
[1724730375205,9.85286292,158.71,158.67,6.3023]
[1724730378523,0.60405863,158.7,158.67,6.3023]
[1724730379926,9.85286292,158.71,158.67,6.3023]
[1724730380132,10.45692155,158.73,158.68,6.3017]
[1724730380632,10.45692155,158.73,158.66,22.0583]
[1724730380840,9.85286292,158.71,158.66,22.0583]
[1724730381138,0.60405863,158.7,158.66,22.0583]
[1724730381433,9.85286292,158.71,158.66,22.0583]
[1724730381842,7.19918307,158.73,158.68,6.3019]
[1724730382022,17.05204599,158.73,158.68,6.3019]
[1724730382918,23.35204599,158.73,158.66,22.0585]
[1724730383123,17.05204599,158.73,158.67,6.3021]
[1724730383918,16.44798736,158.73,158.67,7.56239436]
[1724730386739,23.35224599,158.73,158.67,6.3021]
[1724730387039,9.85286292,158.71,158.66,22.0587]
[1724730389948,16.44798736,158.73,158.67,7.56267341]
[1724730390134,16.44798736,158.73,158.67,6.3023]
[1724730390641,16.44798736,158.73,158.67,7.56262529]
[1724730390825,22.74798736,158.73,158.67,7.56262529]
[1724730394765,6.59512444,158.73,158.68,46.26029865]
[1724730394919,16.3669,158.74,158.68,46.26029865]
[1724730394920,16.3669,158.74,158.68,17.01429865]
[1724730395127,16.4462023,158.77,158.69,46.57842181]
[1724730395422,16.4462023,158.77,158.7,1.26000131]
[1724730395753,22.7447023,158.77,158.71,6.3007]
[1724730396350,20.0,158.76,158.71,6.3007]
[1724730398149,20.0,158.76,158.71,7.56069006]
[1724730399232,20.0,158.76,158.71,6.3007]
[1724730399435,20.0,158.76,158.71,7.56066447]
[1724730400353,20.0,158.76,158.71,6.3007]
[1724730400558,20.0,158.76,158.71,7.56066238]
[1724730401554,20.0,158.76,158.72,1.25993966]
[1724730404544,20.0,158.76,158.71,6.3007]
[1724730404756,9.85286292,158.75,158.71,6.3007]
[1724730409962,10.45692155,158.75,158.71,6.3007]
[1724730411649,9.85286292,158.75,158.71,6.3007]
[1724730417273,20.0,158.76,158.71,6.3007]
[1724730423456,20.0,158.76,158.72,1.25994922]
[1724730424948,20.0,158.76,158.71,6.3007]
[1724730426677,9.85286292,158.75,158.69,45.0]
[1724730426860,9.85286292,158.73,158.68,15.754]
[1724730427200,9.85286292,158.71,158.66,6.3024]
[1724730427676,0.60405863,158.7,158.66,6.3024]
[1724730428758,9.85286292,158.71,158.66,6.3024]
[1724730428980,10.45692155,158.71,158.66,6.3024]
[1724730430867,0.60405863,158.71,158.67,6.3022]
[1724730431082,9.85286292,158.72,158.68,1.26026531]
[1724730433577,9.85286292,158.72,158.67,6.3022]
[1724730434568,9.85286292,158.7,158.66,6.3024]
[1724730440786,9.85286292,158.68,158.62,15.7606]
[1724730441084,9.85286292,158.66,158.59,15.7637]
[1724730441290,9.85286292,158.64,158.6,6.3051]
[1724730444886,9.85286292,158.66,158.61,7.56551721]
[1724730445394,9.85286292,158.66,158.59,15.7637]
[1724730445395,9.85286292,158.66,158.62,6.3043]
[1724730447829,9.85286292,158.66,158.61,6.3047]
[1724730448025,9.85286292,158.64,158.6,6.3051]
[1724730459536,0.60405863,158.65,158.59,15.7637]
[1724730459846,29.25973826,158.68,158.62,6.3043]
[1724730460138,22.95763826,158.68,158.63,7.56444213]
[1724730461034,22.95763826,158.68,158.64,1.26057081]
[1724730466908,6.58827534,158.68,158.64,1.26057081]
[1724730467418,6.58827534,158.68,158.64,7.56387081]
[1724730467630,6.58827534,158.68,158.65,1.26044009]
[1724730468123,16.5096,158.69,158.65,1.26044009]
[1724730468321,20.0,158.68,158.65,1.26044009]
[1724730468525,16.5096,158.69,158.65,7.56344009]
[1724730469755,16.5096,158.69,158.65,6.303]
[1724730471441,26.36246292,158.69,158.65,6.303]
[1724730471661,26.36246292,158.69,158.64,6.3034]
[1724730471857,9.85286292,158.67,158.64,6.3034]
[1724730472735,9.85286292,158.67,158.63,22.0631]
[1724730473426,32.66416292,158.69,158.63,22.0631]
[1724730476140,22.8113,158.69,158.64,1.26058491]
[1724730476332,32.66416292,158.69,158.63,22.0631]
[1724730477046,32.66416292,158.69,158.64,1.26058429]
[1724730478130,26.36246292,158.69,158.63,15.7592]
[1724730478334,26.36246292,158.69,158.64,46.26047115]
[1724730478537,26.36246292,158.69,158.65,7.56349988]
[1724730478741,16.5096,158.69,158.66,6.3026]
[1724730479250,16.5096,158.69,158.67,1.26034403]
[1724730480251,16.5096,158.69,158.66,7.56295038]
[1724730481449,16.2376,158.73,158.67,1.26031155]
[1724730481747,16.2376,158.73,158.68,1.26009959]
[1724730482132,16.2376,158.73,158.7,6.3011]
[1724730488353,16.2376,158.73,158.69,6.3014]
[1724730490363,26.69452155,158.73,158.67,15.7553]
[1724730490570,9.85286292,158.71,158.67,15.7553]
[1724730490872,9.85286292,158.71,158.67,22.0576]
[1724730495763,9.85286292,158.71,158.67,15.7553]
[1724730496063,9.85286292,158.71,158.67,22.0575]
[1724730496364,16.15376292,158.71,158.65,6.3031]
[1724730496674,16.75782155,158.71,158.65,6.3031]
[1724730497160,0.60405863,158.71,158.67,6.3023]
[1724730497368,29.85286292,158.71,158.65,1.26044917]
[1724730497547,36.15366292,158.71,158.65,1.26044917]
[1724730497747,9.85286292,158.69,158.64,22.0619]
[1724730498649,9.35286292,158.69,158.64,22.0619]
[1724730499162,15.65446292,158.69,158.64,15.7587]
[1724730499368,0.60405863,158.68,158.64,15.7587]
[1724730499946,9.85286292,158.65,158.62,6.3043]
[1724730500778,9.85286292,158.65,158.61,15.7618]
[1724730501782,9.85286292,158.65,158.62,45.0]
[1724730502083,9.85286292,158.65,158.62,51.3043]
[1724730502253,16.38165863,158.67,158.62,51.3043]
[1724730502572,32.82145534,158.67,158.62,51.3043]
[1724730506880,39.12385534,158.67,158.62,45.0]
[1724730507770,9.85286292,158.65,158.62,45.0]
[1724730507977,9.85286292,158.65,158.61,22.0665]
[1724730511675,6.3027,158.66,158.61,22.0665]
[1724730522571,9.85286292,158.65,158.61,22.0665]
[1724730523901,16.15596292,158.65,158.59,6.3051]
[1724730524072,0.60405863,158.64,158.59,6.3051]
[1724730536090,28.75625197,158.65,158.6,6.305]
[1724730536982,12.60028905,158.65,158.61,7.56547088]
[1724730537187,6.0104,158.65,158.61,7.56547088]
[1724730538103,6.0104,158.65,158.62,1.26068242]
[1724730538998,6.0104,158.65,158.62,7.56498242]
[1724730539198,15.7776,158.67,158.63,1.26064986]
[1724730542081,15.7776,158.67,158.63,46.26064986]
[1724730542277,15.7776,158.67,158.63,45.0]
[1724730543013,15.7776,158.67,158.64,1.57894193]
[1724730543187,15.7776,158.67,158.63,45.0]
[1724730543385,15.7776,158.67,158.64,1.57894193]
[1724730543584,15.7776,158.67,158.63,45.0]
[1724730543783,15.7776,158.67,158.64,7.88244161]
[1724730543984,15.7776,158.67,158.64,6.3035]
[1724730550907,15.7776,158.67,158.66,6.3027]
[1724730551096,16.1117,158.71,158.66,6.3027]
[1724730551293,16.1117,158.71,158.67,1.26032707]
[1724730555196,16.1117,158.71,158.67,51.3022]
[1724730558195,16.71575863,158.71,158.65,6.3029]
[1724730558410,10.45692155,158.7,158.65,6.3029]
[1724730563122,17.04594496,158.7,158.65,6.3029]
[1724730563424,16.44188633,158.7,158.66,6.3027]
[1724730563617,6.58902341,158.7,158.66,6.3027]
[1724730566107,6.58902341,158.7,158.67,45.0]
[1724730567925,16.1117,158.71,158.68,1.26025401]
[1724730568334,6.58761195,158.74,158.68,1.26025401]
[1724730568640,6.58761195,158.74,158.69,6.3012]
[1724730569145,22.74007487,158.74,158.69,6.3012]
[1724730569440,23.3441335,158.74,158.69,6.3012]
[1724730571630,9.85286292,158.72,158.68,15.7543]
[1724730571927,0.60405863,158.71,158.68,15.7543]
[1724730576135,9.85286292,158.72,158.68,15.7543]
[1724730578644,16.44049756,158.72,158.68,15.7543]
[1724730585213,6.58763464,158.72,158.68,15.7543]
[1724730585933,6.58763464,158.72,158.69,7.56175643]
[1724730590922,6.58763464,158.72,158.69,6.3015]
[1724730592041,6.58763464,158.72,158.68,15.7543]
[1724730592228,15.7488,158.75,158.71,6.3007]
[1724730592618,22.33514674,158.75,158.71,6.3007]
[1724730594458,6.58634674,158.75,158.74,6.2996]
[1724730595148,6.58634674,158.75,158.73,6.2999]
[1724730604464,22.73607866,158.78,158.73,6.2999]
[1724730609355,0.60405863,158.77,158.72,6.3003]
[1724730610351,0.60405863,158.77,158.71,15.7519]
[1724730610352,9.85286292,158.74,158.67,24.1959]
[1724730610563,9.85286292,158.74,158.69,6.3012]
[1724730610747,9.85286292,158.74,158.67,15.7551]
[1724730610947,9.85286292,158.74,158.68,1.57831593]
[1724730611144,9.85286292,158.74,158.67,15.7551]
[1724730611354,9.85286292,158.72,158.68,1.57831593]
[1724730611670,6.3017,158.69,158.63,15.7592]
[1724730611849,9.85286292,158.68,158.63,22.0631]
[1724730613151,9.85286292,158.7,158.64,7.56395758]
[1724730613366,9.85286292,158.7,158.65,1.26041452]
[1724730613547,9.85286292,158.7,158.65,46.26041452]
[1724730615953,9.85286292,158.7,158.65,52.56331452]
[1724730616976,9.85286292,158.7,158.65,51.3029]
[1724730619286,16.75812155,158.7,158.65,6.3029]
[1724730619673,9.85286292,158.68,158.65,6.3029]
[1724730631079,6.5951924,158.7,158.66,7.56310718]
[1724730631408,6.5951924,158.7,158.68,6.3018]
[1724730631701,32.93848975,158.74,158.69,6.3013]
[1724730634834,0.60405863,158.73,158.69,6.3013]
[1724730642221,32.93848975,158.74,158.69,6.3013]
[1724730642526,0.60405863,158.73,158.69,6.3013]
[1724730642720,23.08562683,158.74,158.7,6.301]
[1724730643300,16.4924,158.74,158.71,6.3006]
[1724730645598,9.85286292,158.75,158.71,6.3006]
[1724730647509,9.85286292,158.75,158.71,7.56058265]
[1724730649226,22.10337287,158.78,158.72,6.3]
[1724730649538,22.10337287,158.78,158.65,37.9756]
[1724730649539,22.10337287,158.78,158.73,17.00944873]
[1724730649826,15.5278,158.78,158.74,46.25981118]
[1724730650820,12.87061388,158.81,158.75,6.2988]
[1724730651001,20.0,158.8,158.75,6.2988]
[1724730653025,20.0,158.8,158.76,6.2987]
[1724730654623,16.4266768,158.81,158.76,6.2987]
[1724730654823,16.4266768,158.81,158.76,7.55825973]
[1724730658527,16.4266768,158.81,158.76,6.2987]
[1724730659134,6.57381388,158.81,158.77,15.7453]
[1724730659426,15.5278,158.82,158.79,6.2974]
[1724730661618,9.85286292,158.81,158.77,15.7453]
[1724730661941,9.85286292,158.81,158.77,22.0436]
[1724730664039,9.85286292,158.81,158.76,6.2987]
[1724730664342,9.85286292,158.79,158.74,22.0482]
[1724730664514,9.85286292,158.79,158.75,6.299]
[1724730666231,0.60405863,158.8,158.74,15.7487]
[1724730666529,20.0,158.81,158.76,1.25965778]
[1724730666920,20.0,158.81,158.75,45.0]
[1724730667121,15.5278,158.82,158.77,6.298]
[1724730667711,15.5278,158.82,158.78,51.2979]
[1724730669515,9.85286292,158.81,158.76,15.746]
[1724730670337,15.5278,158.82,158.77,1.25952344]
[1724730670524,15.5278,158.82,158.77,45.0]
[1724730670930,16.13185863,158.82,158.77,45.0]
[1724730671107,16.13185863,158.82,158.77,6.2983]
[1724730671307,16.13185863,158.82,158.76,15.746]
[1724730671518,22.42845863,158.82,158.76,22.0447]
[1724730672933,9.85286292,158.81,158.76,22.0447]
[1724730674333,9.85286292,158.81,158.77,6.2983]
[1724730679238,15.5278,158.82,158.77,6.2983]
[1724730680439,15.5278,158.82,158.73,9.85286292]
[1724730680440,15.5278,158.82,158.79,15.7436]
[1724730681144,15.5278,158.82,158.79,22.0411]
[1724730684642,15.5278,158.82,158.8,1.25933435]
[1724730685647,6.57685788,158.83,158.8,1.25933435]
[1724730688344,6.57685788,158.83,158.79,15.7436]
[1724730689227,6.57685788,158.83,158.79,22.0411]
[1724730689424,10.45692155,158.82,158.77,6.298]
[1724730689624,9.85286292,158.8,158.77,6.298]
[1724730691744,9.85286292,158.8,158.78,6.2979]
[1724730691950,16.3315,158.81,158.79,6.2976]
[1724730692135,26.18436292,158.81,158.79,6.2976]
[1724730693056,26.18436292,158.81,158.76,15.7468]
[1724730693235,26.18436292,158.81,158.77,45.0]
[1724730694649,26.18436292,158.81,158.78,6.2979]
[1724730696754,16.3315,158.81,158.79,52.5569473]
[1724730696956,16.3315,158.81,158.79,7.5569473]
[1724730697848,16.3315,158.81,158.79,6.2975]
[1724730699154,16.4297208,158.83,158.79,6.2975]
[1724730702458,6.57685788,158.83,158.79,6.2975]
[1724730702759,16.4297208,158.83,158.79,6.2975]
[1724730704556,0.60405863,158.82,158.77,45.0]
[1724730704860,9.85286292,158.78,158.76,22.0455]
[1724730710664,9.85286292,158.78,158.77,6.2984]
[1724730710858,26.18436292,158.8,158.77,6.2984]
[1724730717648,16.3315,158.8,158.78,6.298]
[1724730717852,6.57685788,158.83,158.78,15.7443]
[1724730718077,6.57685788,158.83,158.8,6.297]
[1724730719082,6.57685788,158.83,158.79,52.55692903]
[1724730719443,17.1487083,158.84,158.81,6.2967]
[1724730720275,27.00157122,158.84,158.81,6.2967]
[1724730720449,17.1487083,158.84,158.81,6.2967]
[1724730720653,27.00157122,158.84,158.81,6.2967]
[1724730721385,0.8172083,158.84,158.83,6.296]
[1724730721750,0.8172083,158.84,158.83,51.296]
[1724730722272,0.8172083,158.84,158.83,52.55498848]
[1724730724286,0.8172083,158.84,158.83,45.0]
[1724730724579,0.8172083,158.84,158.82,15.7401]
[1724730724773,9.85286292,158.83,158.82,15.7401]
[1724730725292,0.8172083,158.84,158.82,15.7401]
[1724730725761,0.8172083,158.84,158.83,45.0]
[1724730726763,0.8172083,158.84,158.83,51.296]
[1724730737669,0.8172083,158.84,158.83,52.55496257]
[1724730737991,0.8172083,158.84,158.83,51.296]
[1724730752903,0.8172083,158.84,158.83,52.55482276]
[1724730754017,0.8172083,158.84,158.83,51.296]
[1724730766846,0.8172083,158.84,158.83,52.55485183]
[1724730767444,0.8172083,158.84,158.83,51.296]
[1724730769849,0.8172083,158.84,158.82,22.0364]
[1724730770142,0.8172083,158.84,158.77,47.60956567]
[1724730770143,10.67007122,158.84,158.8,6.2968]
[1724730770925,10.67007122,158.84,158.79,15.744]
[1724730771144,15.367,158.83,158.79,22.0416]
[1724730771344,15.367,158.83,158.8,51.2972]
[1724730783836,9.85286292,158.82,158.79,15.744]
[1724730787877,15.367,158.83,158.8,1.25940729]
[1724730788040,15.367,158.83,158.8,46.25940729]
[1724730789765,15.367,158.83,158.81,6.2968]
[1724730790764,0.8172083,158.84,158.82,51.2964]
[1724730790966,0.8172083,158.84,158.83,1.25899751]
[1724730791446,0.8172083,158.84,158.83,7.55499751]
[1724730791648,0.8172083,158.84,158.83,52.55499751]
[1724730792180,0.8172083,158.84,158.83,51.296]
[1724730794463,0.8172083,158.84,158.82,6.2963]
[1724730794665,0.8172083,158.84,158.81,15.7413]
[1724730795746,0.8172083,158.84,158.81,22.038]
[1724730799253,0.8172083,158.84,158.82,51.2961]
[1724730801058,0.8172083,158.84,158.82,45.0]
[1724730801360,0.8172083,158.84,158.81,15.7413]
[1724730802470,0.8172083,158.84,158.81,22.0379]
[1724730810351,0.8172083,158.84,158.82,6.2963]
[1724730810553,0.8172083,158.84,158.83,45.0]
[1724730814956,0.8172083,158.84,158.83,52.55503146]
[1724730819875,0.8172083,158.84,158.83,52.55492371]
[1724730821574,0.8172083,158.84,158.83,51.296]
[1724730831212,0.8172083,158.84,158.81,15.7413]
[1724730831381,0.8172083,158.84,158.81,22.0377]
[1724730834402,0.8172083,158.84,158.82,7.55538944]
[1724730834613,0.8172083,158.84,158.83,46.25902567]
[1724730834783,0.8172083,158.84,158.83,45.0]
[1724730842612,0.8172083,158.84,158.81,15.7413]
[1724730845133,0.8172083,158.84,158.81,17.00053912]
[1724730845945,0.8172083,158.84,158.81,15.7413]
[1724730849741,0.8172083,158.84,158.81,22.038]
[1724730860673,0.8172083,158.84,158.82,1.25923875]
[1724730860962,0.8172083,158.84,158.83,7.55499657]
[1724730861169,0.8172083,158.84,158.83,52.55499657]
[1724730863043,0.8172083,158.84,158.83,54.13214287]
[1724730863259,0.8172083,158.84,158.83,52.55499657]
[1724730863766,0.8172083,158.84,158.83,54.13211599]
[1724730863941,0.8172083,158.84,158.83,52.55499657]
[1724730864137,0.8172083,158.84,158.83,54.13211599]
[1724730864735,0.8172083,158.84,158.83,52.55499657]
[1724730865268,0.8172083,158.84,158.83,51.296]
[1724730868970,0.8172083,158.84,158.81,15.7413]
[1724730870348,0.8172083,158.84,158.81,22.0381]
[1724730872151,10.45692155,158.83,158.78,15.7447]
[1724730872559,10.45692155,158.83,158.78,22.0426]
[1724730873470,10.45692155,158.83,158.79,45.0]
[1724730878390,20.8172083,158.84,158.8,1.25933249]
[1724730880875,27.1128083,158.84,158.8,1.25933249]
[1724730886670,20.8172083,158.84,158.8,1.25933249]
[1724730887691,9.85286292,158.83,158.79,51.2972]
[1724730888763,37.56982985,158.84,158.79,51.2972]
[1724730890962,27.1129083,158.84,158.79,51.2972]
[1724730891162,36.96577122,158.84,158.79,51.2972]
[1724730900287,20.8172083,158.84,158.79,51.2972]
[1724730900505,20.8172083,158.84,158.8,6.2971]
[1724730900703,20.8172083,158.84,158.81,45.0]
[1724730901692,0.8172083,158.84,158.81,46.25919074]
[1724730902670,0.8172083,158.84,158.82,6.2963]
[1724730902867,0.8172083,158.84,158.83,46.25903417]
[1724730906176,0.8172083,158.84,158.83,52.55503417]
[1724730910182,0.8172083,158.84,158.83,51.296]
[1724730911699,0.8172083,158.84,158.83,52.55482438]
[1724730913091,0.8172083,158.84,158.83,62.4076873]
[1724730913586,0.8172083,158.84,158.83,61.14886292]
[1724730919509,0.8172083,158.84,158.83,51.296]
[1724730922714,8.70285999,158.84,158.83,52.55483211]
[1724730923406,8.70285999,158.84,158.83,51.296]
[1724730925105,8.70285999,158.84,158.83,62.40778838]
[1724730925514,8.70285999,158.84,158.83,61.14886292]
[1724730926012,8.70285999,158.84,158.83,62.40767116]
[1724730926707,8.70285999,158.84,158.83,61.14886292]
[1724730927613,8.70285999,158.84,158.83,62.40764637]
[1724730927812,0.8172083,158.84,158.83,62.40764637]
[1724730929214,0.8172083,158.84,158.83,62.40757621]
[1724730931694,8.70157153,158.84,158.83,62.40757621]
[1724730932716,8.70157153,158.84,158.83,52.55471329]
[1724730932915,8.70157153,158.84,158.83,61.14886292]
[1724730937821,0.8172083,158.84,158.83,61.14886292]
[1724730942122,8.70075968,158.84,158.83,51.296]
[1724730942427,8.70075968,158.84,158.83,61.14886292]
[1724730945731,0.8172083,158.84,158.83,61.14886292]
[1724730945922,8.70086164,158.84,158.83,61.14886292]
[1724730947535,0.8172083,158.84,158.83,61.14886292]
[1724730947747,8.70087147,158.84,158.83,61.14886292]
[1724730949634,0.8172083,158.84,158.83,61.14886292]
[1724730949842,8.70081654,158.84,158.83,61.14886292]
[1724730951054,8.70080355,158.84,158.83,61.14886292]
[1724730954256,8.70080355,158.84,158.83,51.296]
[1724730954462,8.7009123,158.84,158.83,51.296]
[1724730957847,0.8172083,158.84,158.83,51.296]
[1724730958056,8.70091453,158.84,158.83,51.296]
[1724730961052,8.70082839,158.84,158.83,51.296]
[1724730961356,0.8172083,158.84,158.83,51.296]
[1724730961541,8.70082839,158.84,158.83,51.296]
[1724730963958,8.70087226,158.84,158.83,6.296]
[1724730964135,8.70087226,158.84,158.83,51.296]
[1724730967271,8.70083144,158.84,158.83,51.296]
[1724730967561,8.70083144,158.84,158.83,6.296]
[1724730967779,8.70083144,158.84,158.83,51.296]
[1724730968868,7.5,158.92,158.91,22.0249]
[1724730969035,7.5,158.92,158.91,67.0249]
[1724730970869,6.5067,158.9,158.87,15.7351]
[1724730971348,6.5067,158.9,158.89,6.2936]
[1724730972368,6.5067,158.9,158.89,51.2936]
[1724730978280,6.5067,158.9,158.89,45.0]
[1724730979690,15.5553,158.91,158.89,45.0]
[1724730979863,15.5553,158.91,158.88,45.0]
[1724730980392,15.5553,158.91,158.9,6.2932]
[1724730980684,15.5553,158.91,158.9,51.2932]
[1724730980871,23.43799344,158.91,158.9,51.2932]
[1724730981073,23.43791182,158.91,158.9,51.2932]
[1724730983994,23.43806588,158.91,158.9,51.2932]
[1724730987274,23.43806588,158.91,158.89,22.0266]
[1724730987469,7.88276588,158.9,158.89,22.0266]
[1724730987696,7.88276588,158.9,158.89,67.0266]
[1724730990496,15.5553,158.91,158.9,6.2932]
[1724730990800,23.43856003,158.91,158.9,6.2932]
[1724730992681,23.43856003,158.91,158.89,22.0269]
[1724730992872,7.88326003,158.9,158.89,22.0269]
[1724730993767,7.88346261,158.9,158.89,22.0269]
[1724730994871,7.88346261,158.9,158.89,67.0269]
[1724730996990,7.5,158.92,158.9,6.2929]
[1724730997484,7.88313141,158.91,158.9,6.2929]
[1724730997787,7.88313141,158.91,158.9,51.2929]
[1724731000403,7.5,158.92,158.9,51.2929]
[1724731000404,7.5,158.92,158.91,6.2928]
[1724731000644,7.5,158.92,158.91,51.2928]
[1724731000645,15.3825858,158.92,158.91,51.2928]
[1724731000905,23.26500478,158.92,158.91,51.2928]
[1724731006094,15.38250239,158.92,158.91,51.2928]
[1724731007073,15.38243481,158.92,158.91,51.2928]
[1724731009512,15.38243481,158.92,158.91,45.0]
[1724731009699,15.38243481,158.92,158.9,45.0]
[1724731009902,15.38243481,158.92,158.9,51.2932]
[1724731009903,7.88243481,158.91,158.9,51.2932]
[1724731010530,7.5,158.92,158.91,6.2928]
[1724731010693,7.5,158.92,158.91,51.2928]
[1724731011027,15.38239386,158.92,158.91,51.2928]
[1724731013627,15.38243467,158.92,158.91,51.2928]
[1724731018233,15.38243467,158.92,158.91,6.2928]
[1724731019934,7.5,158.92,158.91,6.2928]
[1724731020134,15.3824905,158.92,158.91,6.2928]
[1724731022124,15.38171785,158.92,158.91,6.2928]
[1724731023430,15.38171785,158.92,158.91,51.2928]
[1724731024318,7.5,158.92,158.91,51.2928]
[1724731034051,7.5,158.92,158.91,61.14566292]
[1724731047172,7.5,158.92,158.91,51.2928]
[1724731051541,7.5,158.92,158.91,52.5510615]
[1724731056400,7.5,158.92,158.91,51.2928]
[1724731061395,7.5,158.92,158.91,52.55101141]
[1724731061599,7.5,158.92,158.91,72.55101141]
[1724731061799,15.37951524,158.92,158.91,72.55101141]
[1724731064803,11.22941524,158.92,158.91,80.3404993]
[1724731064982,15.0555,158.99,158.98,22.0152]
[1724731065293,22.93354742,158.99,158.98,67.0152]
[1724731065693,15.0555,158.99,158.98,67.0152]
[1724731066091,15.0555,158.99,158.98,22.0152]
[1724731067397,15.0555,158.99,158.96,6.2905]
[1724731067780,6.0937,158.98,158.96,6.2905]
[1724731068106,0.60405863,158.97,158.94,22.0196]
[1724731068614,0.60405863,158.97,158.95,6.2912]
[1724731070381,6.0937,158.98,158.95,6.2912]
[1724731070887,0.60405863,158.97,158.95,6.2912]
[1724731072110,6.0937,158.98,158.95,6.2912]
[1724731072609,0.60405863,158.97,158.95,6.2912]
[1724731072929,6.0937,158.98,158.95,6.2912]
[1724731073587,0.60405863,158.97,158.95,6.2912]
[1724731073782,15.7658,158.96,158.93,6.2917]
[1724731073992,0.60405863,158.95,158.93,6.2917]
[1724731074184,0.60405863,158.95,158.92,6.2924]
[1724731074403,0.60405863,158.95,158.91,15.732]
[1724731074706,0.60405863,158.95,158.91,22.0245]
[1724731074908,0.60405863,158.95,158.92,6.2923]
[1724731075314,10.45692155,158.95,158.87,23.52518789]
[1724731075524,6.0937,158.94,158.87,15.7357]
[1724731075720,0.60405863,158.93,158.87,15.7357]
[1724731076709,7.88115094,158.92,158.9,6.2932]
[1724731077032,7.88115094,158.91,158.87,15.7357]
[1724731077333,7.88115094,158.9,158.87,22.0297]
[1724731077491,7.88115094,158.89,158.88,6.294]
[1724731078430,7.88115094,158.89,158.88,51.294]
[1724731081215,15.7658,158.91,158.89,6.2934]
[1724731081404,7.88220274,158.9,158.89,6.2934]
[1724731081719,7.88220274,158.9,158.89,51.2934]
[1724731081924,15.7658,158.91,158.88,6.294]
[1724731082218,7.88220616,158.9,158.88,6.294]
[1724731082426,7.88220616,158.89,158.88,6.294]
[1724731082804,7.88220616,158.89,158.88,51.294]
[1724731083206,15.7658,158.91,158.89,6.2932]
[1724731083526,7.88220137,158.9,158.89,6.2932]
[1724731083697,15.7658,158.91,158.89,51.2932]
[1724731085199,15.7658,158.91,158.9,6.2932]
[1724731086520,15.7658,158.91,158.9,51.2932]
[1724731086833,6.0937,158.94,158.91,6.2927]
[1724731091232,0.60405863,158.93,158.91,6.2927]
[1724731093749,6.0937,158.94,158.91,6.2927]
[1724731093921,0.60405863,158.93,158.91,6.2927]
[1724731094319,0.60405863,158.93,158.9,6.2932]
[1724731094644,0.60405863,158.93,158.89,22.0267]
[1724731094817,10.45692155,158.93,158.89,22.0267]
[1724731095018,0.60405863,158.92,158.89,22.0267]
[1724731098250,0.60405863,158.92,158.89,15.7331]
[1724731098749,6.0937,158.94,158.9,6.2931]
[1724731099847,6.0937,158.94,158.91,6.2928]
[1724731101832,0.60405863,158.93,158.91,6.2928]
[1724731103437,0.60405863,158.93,158.89,15.7331]
[1724731104823,0.60405863,158.93,158.9,6.2932]
[1724731106848,6.0937,158.94,158.9,6.2932]
[1724731107033,6.0937,158.94,158.91,6.2928]
[1724731108651,6.69775863,158.94,158.91,6.2928]
[1724731118465,7.88154068,158.93,158.91,6.2928]
[1724731118646,7.88154068,158.92,158.91,6.2928]
[1724731121265,7.88154392,158.92,158.91,6.2928]
[1724731124245,7.88154392,158.92,158.89,15.7331]
[1724731124548,7.88154715,158.91,158.89,15.7331]
[1724731124750,7.88154715,158.9,158.89,22.0267]
[1724731127760,7.88154715,158.9,158.89,67.0267]
[1724731127940,28.15737682,158.94,158.91,6.2927]
[1724731128269,7.88154068,158.93,158.91,6.2927]
[1724731128449,7.88154068,158.92,158.91,6.2927]
[1724731131365,7.88154402,158.92,158.91,6.2927]
[1724731131768,28.76143545,158.94,158.91,6.2927]
[1724731131959,7.88157805,158.92,158.91,6.2927]
[1724731134768,28.76143545,158.94,158.91,6.2927]
[1724731135069,7.88150322,158.93,158.91,6.2927]
[1724731135270,7.88150322,158.92,158.91,6.2927]
[1724731138273,7.88150999,158.92,158.91,6.2927]
[1724731142064,7.88154402,158.92,158.91,6.2927]
[1724731144078,28.15737682,158.94,158.91,6.2927]
[1724731144288,7.88155111,158.93,158.91,6.2927]